bitfinex/quotes_SOLUSD_20241008
["timestamp","ask_amount","ask_price","bid_price","bid_amount"]
[1728402289360,6.9997,142.87,142.83,8.40111513]
[1728402289669,6.9997,142.87,142.84,7.0008]
[1728402289972,6.9998,142.86,142.83,17.5031]
[1728402290667,0.8443328,142.89,142.88,6.9988]
[1728402291574,0.8443328,142.89,142.87,17.4979]
[1728402291766,0.8443328,142.89,142.88,8.39816857]
[1728402292073,0.8443328,142.89,142.87,24.497]
[1728402292599,0.8443328,142.89,142.88,1.39939131]
[1728402294453,0.8443328,142.89,142.87,24.497]
[1728402294669,0.8443328,142.89,142.88,8.39824029]
[1728402295575,0.8443328,142.89,142.88,8.39807997]
[1728402295759,0.8443328,142.89,142.88,6.9988]
[1728402295972,0.8443328,142.89,142.88,8.39787174]
[1728402296873,0.8443328,142.89,142.88,8.64885174]
[1728402297953,0.8443328,142.89,142.88,6.9988]
[1728402298277,0.8443328,142.89,142.88,8.39788624]
[1728402298473,0.8443328,142.89,142.88,6.9988]
[1728402300258,0.8443328,142.89,142.88,8.39790118]
[1728402300481,0.8443328,142.89,142.88,8.64888118]
[1728402301353,0.8443328,142.89,142.88,7.24978]
[1728402302260,0.5,143.0,142.89,21.979]
[1728402302455,6.9935,142.99,142.95,6.9953]
[1728402302659,6.9935,142.99,142.96,1.3986868]
[1728402303178,17.9821,143.01,142.96,1.3986868]
[1728402303381,6.9921,143.02,142.98,6.9935]
[1728402303614,6.9921,143.02,142.99,1.39839966]
[1728402305495,6.9918,143.03,142.99,8.39179966]
[1728402306362,6.9927,143.01,142.97,24.48]
[1728402306784,6.9927,143.01,142.98,1.39845304]
[1728402307154,6.9917,143.03,142.98,1.39845304]
[1728402307354,6.9927,143.01,142.98,1.39831407]
[1728402307583,7.8355328,143.04,142.99,6.993]
[1728402307781,6.9917,143.03,143.0,1.39825556]
[1728402308164,0.8443328,143.04,142.97,17.4858]
[1728402308364,0.8443328,143.04,142.96,21.5646]
[1728402308365,17.4804,143.02,142.93,16.3831]
[1728402308560,6.9948,142.97,142.93,16.3831]
[1728402308770,6.9949,142.96,142.92,13.3995]
[1728402309181,6.994,142.98,142.94,6.9955]
[1728402309383,6.994,142.98,142.93,18.8895083]
[1728402309384,0.5,143.02,142.95,1.3986062]
[1728402309680,0.8443328,143.04,142.92,29.08606074]
[1728402309681,0.8443328,143.04,143.03,6.9915]
[1728402310387,0.8443328,143.04,143.03,8.38911194]
[1728402310588,0.8443328,143.04,143.03,8.64009194]
[1728402311081,0.8443328,143.04,143.03,23.71899194]
[1728402311272,6.9856,143.16,143.11,6.9874]
[1728402311467,16.1475328,143.18,143.12,17.4673]
[1728402311673,6.9852,143.16,143.12,17.4673]
[1728402312076,23.1321328,143.18,143.13,6.9864]
[1728402312258,0.8443328,143.18,143.13,1.39708342]
[1728402312461,0.8443328,143.18,143.14,6.9859]
[1728402312662,0.8443328,143.18,143.15,1.3968379]
[1728402312891,0.8443328,143.18,143.12,17.4673]
[1728402313091,6.9852,143.16,143.1,23.0583]
[1728402313273,2.18824344,143.18,143.11,1.39721169]
[1728402313474,0.8443328,143.18,143.11,1.39721169]
[1728402313677,6.9847,143.17,143.12,6.9869]
[1728402313878,6.9847,143.17,143.13,1.39693047]
[1728402314791,6.9847,143.17,143.12,6.9869]
[1728402315591,6.9854,143.16,143.11,6.9875]
[1728402316097,0.8443328,143.18,143.09,17.4712]
[1728402316292,6.9865,143.14,143.09,24.4598]
[1728402316484,6.9865,143.14,143.09,17.4712]
[1728402316683,6.9865,143.14,143.1,1.39715631]
[1728402316890,6.9865,143.14,143.1,8.38525631]
[1728402317579,6.9865,143.14,143.11,1.39717305]
[1728402318279,6.9865,143.14,143.09,24.4596]
[1728402319398,6.9857,143.15,143.09,17.4712]
[1728402319594,6.9857,143.15,143.1,6.988]
[1728402319785,6.9852,143.16,143.09,17.4712]
[1728402319978,6.9852,143.16,143.11,6.9872]
[1728402320778,7.8287328,143.18,143.14,6.9861]
[1728402320979,7.8287328,143.18,143.15,1.39688046]
[1728402321182,0.8443328,143.18,143.16,6.985]
[1728402321378,0.8443328,143.18,143.14,17.4647]
[1728402321685,7.8285328,143.18,143.14,17.4647]
[1728402322290,7.8285328,143.18,143.15,1.39677327]
[1728402322500,7.8285328,143.18,143.14,33.5987]
[1728402322693,6.9857,143.15,143.11,17.4686]
[1728402322874,6.9865,143.14,143.1,15.9402]
[1728402323192,6.9857,143.15,143.1,22.9278]
[1728402323384,2.18824344,143.18,143.1,22.9278]
[1728402323385,6.9852,143.16,143.11,8.38460753]
[1728402323780,6.9852,143.16,143.1,33.4101]
[1728402323979,6.9848,143.17,143.12,6.9868]
[1728402324207,6.9848,143.17,143.13,1.39690369]
[1728402324496,6.9848,143.17,143.13,6.9865]
[1728402324691,0.8443328,143.18,143.12,24.4541]
[1728402324907,6.9847,143.17,143.12,24.4541]
[1728402325084,6.9847,143.17,143.13,8.38344701]
[1728402325285,6.9847,143.17,143.12,17.4671]
[1728402325690,6.9853,143.16,143.12,24.454]
[1728402326095,6.9853,143.16,143.13,1.39695832]
[1728402326304,0.8443328,143.18,143.13,1.39695832]
[1728402326692,0.8443328,143.18,143.11,6.9876]
[1728402326693,6.9857,143.15,143.11,6.9876]
[1728402326897,0.8443328,143.18,143.1,15.9402]
[1728402327206,0.8443328,143.18,143.11,17.4687]
[1728402327390,6.9852,143.16,143.12,6.9868]
[1728402327783,6.9855,143.16,143.11,24.4559]
[1728402327987,6.9855,143.16,143.12,8.38395841]
[1728402328186,6.9848,143.17,143.13,6.9865]
[1728402328489,6.9847,143.17,143.14,1.39689231]
[1728402328690,6.9847,143.17,143.13,6.9865]
[1728402328904,6.9847,143.17,143.12,6.987]
[1728402329111,6.9858,143.15,143.13,1.39689482]
[1728402329296,6.9857,143.15,143.11,24.456]
[1728402329607,6.9857,143.15,143.11,24.4562]
[1728402330203,6.9853,143.16,143.11,24.4562]
[1728402330999,0.8443328,143.18,143.15,6.9856]
[1728402331197,6.9847,143.17,143.16,1.39674951]
[1728402331508,6.9847,143.17,143.13,24.4527]
[1728402331904,6.9847,143.17,143.1,15.9402]
[1728402331905,6.9861,143.15,143.11,6.9872]
[1728402332105,6.9862,143.14,143.1,40.3974]
[1728402332505,6.9858,143.15,143.11,6.9875]
[1728402332918,1.34391064,143.17,143.07,22.3601]
[1728402333215,1.34391064,143.17,143.08,1.39723203]
[1728402333420,2.31373344,143.18,143.09,17.4712]
[1728402333625,6.9876,143.11,143.07,6.9893]
[1728402333917,0.8443328,143.18,143.07,58.12851366]
[1728402334117,0.8443328,143.18,143.14,17.4648]
[1728402334306,0.8443328,143.18,143.14,24.4508]
[1728402334704,0.8443328,143.18,143.14,17.4648]
[1728402334906,0.8443328,143.18,143.15,6.9855]
[1728402336018,0.8443328,143.18,143.14,23.568]
[1728402336204,7.8286328,143.18,143.14,30.554]
[1728402336402,0.8443328,143.18,143.15,6.9855]
[1728402336603,6.985,143.17,143.12,6.987]
[1728402336909,6.985,143.17,143.11,17.4683]
[1728402336910,0.8443328,143.18,143.13,8.38334579]
[1728402337099,6.9847,143.17,143.13,6.9865]
[1728402337294,0.8443328,143.18,143.1,6.988]
[1728402337500,0.8443328,143.18,143.09,22.3771]
[1728402337830,0.8443328,143.18,143.11,6.9875]
[1728402337831,6.986,143.15,143.11,6.9875]
[1728402338114,6.9862,143.14,143.1,6.9879]
[1728402338514,6.9862,143.14,143.09,29.3656]
[1728402339301,6.9867,143.13,143.09,29.3656]
[1728402339497,6.9863,143.14,143.1,8.38510721]
[1728402340420,1.34391064,143.17,143.1,8.38510721]
[1728402340604,6.9858,143.15,143.1,8.38510721]
[1728402341453,6.9862,143.14,143.1,6.9879]
[1728402341629,6.9874,143.12,143.09,16.0228]
[1728402341830,6.9867,143.13,143.1,1.39732108]
[1728402342235,2.18824344,143.18,143.1,1.39732108]
[1728402342416,2.18824344,143.18,143.1,18.86652312]
[1728402342729,6.986,143.15,143.1,25.85422312]
[1728402343142,6.986,143.15,143.11,6.9876]
[1728402343344,6.9861,143.14,143.1,17.4696]
[1728402343558,2.18824344,143.18,143.1,17.4696]
[1728402343719,6.9868,143.13,143.1,17.4696]
[1728402344040,6.9872,143.12,143.09,16.0228]
[1728402344237,6.9858,143.15,143.11,6.9876]
[1728402344441,6.9858,143.15,143.12,1.39712038]
[1728402346035,2.18824344,143.18,143.12,1.39712038]
[1728402346240,6.9857,143.15,143.11,24.4562]
[1728402346534,6.9857,143.15,143.12,1.39705933]
[1728402346715,6.9853,143.16,143.12,8.38405933]
[1728402347744,7.8286328,143.18,143.14,6.9861]
[1728402348048,7.8286328,143.18,143.15,1.39686]
[1728402348839,6.9848,143.17,143.13,24.4528]
[1728402349349,6.9848,143.17,143.13,17.4664]
[1728402349549,6.9848,143.17,143.14,6.9861]
[1728402349724,7.8286328,143.18,143.14,6.9861]
[1728402349924,7.8286328,143.18,143.15,1.39679868]
[1728402350226,0.8443328,143.18,143.15,8.38229868]
[1728402350752,6.9848,143.17,143.13,30.8181]
[1728402352249,0.8443328,143.18,143.15,6.9856]
[1728402352429,0.8443328,143.18,143.17,6.9847]
[1728402352825,0.8443328,143.18,143.17,22.8147]
[1728402354834,0.8443328,143.18,143.17,23.06568]
[1728402356432,0.8443328,143.18,143.17,22.8147]
[1728402356956,0.8443328,143.18,143.17,22.94019]
[1728402357742,0.8443328,143.18,143.17,22.8147]
[1728402357932,0.8443328,143.18,143.17,23.06568]
[1728402359236,0.8443328,143.18,143.17,22.8147]
[1728402359438,0.8443328,143.18,143.17,23.06568]
[1728402360957,0.8443328,143.18,143.17,22.94019]
[1728402361540,0.8443328,143.18,143.17,15.83]
[1728402361931,0.8443328,143.18,143.13,22.8219]
[1728402362146,7.8287328,143.18,143.14,6.9861]
[1728402362352,6.9847,143.17,143.13,29.8081]
[1728402362668,6.9847,143.17,143.15,1.39679287]
[1728402362860,0.8443328,143.18,143.15,1.39679287]
[1728402363028,0.8443328,143.18,143.16,6.985]
[1728402363755,0.8443328,143.18,143.17,1.39655355]
[1728402363973,0.8443328,143.18,143.17,6.9847]
[1728402364461,0.8443328,143.18,143.16,24.4479]
[1728402364644,0.8443328,143.18,143.17,1.39656755]
[1728402365060,0.8443328,143.18,143.16,24.4477]
[1728402365366,0.8443328,143.18,143.16,17.4628]
[1728402366659,0.8443328,143.18,143.15,6.9855]
[1728402366861,7.8285328,143.18,143.14,6.9859]
[1728402367684,7.8285328,143.18,143.13,40.2876]
[1728402367685,0.8443328,143.18,143.13,17.4657]
[1728402367876,0.8443328,143.18,143.1,17.4692]
[1728402368048,6.9857,143.15,143.11,6.9876]
[1728402368568,6.9852,143.16,143.12,8.38381834]
[1728402368761,7.8286328,143.18,143.14,6.986]
[1728402368970,0.8443328,143.18,143.15,8.38241872]
[1728402369147,0.8443328,143.18,143.15,1.39681872]
[1728402369349,0.8443328,143.18,143.16,24.4476]
[1728402369676,7.88591018,143.32,143.17,8.38118736]
[1728402369866,34.8936,143.3,143.18,6.984]
[1728402370054,34.8936,143.3,143.19,8.37998453]
[1728402370254,34.8936,143.3,143.18,24.4443]
[1728402370456,34.8936,143.3,143.18,17.4602]
[1728402370962,34.8936,143.3,143.17,6.9845]
[1728402371169,6.983,143.21,143.17,6.9845]
[1728402371973,17.453,143.25,143.18,1.39652331]
[1728402372165,6.9823,143.22,143.18,8.38062331]
[1728402372372,6.9819,143.23,143.19,6.9837]
[1728402372562,6.9819,143.23,143.2,1.39636333]
[1728402372754,17.453,143.25,143.17,24.4459]
[1728402372755,6.9831,143.21,143.17,24.4459]
[1728402372948,6.9825,143.22,143.18,8.38031467]
[1728402373349,1.916,143.28,143.18,1.39651467]
[1728402373576,6.9814,143.24,143.2,6.9831]
[1728402374144,6.9811,143.25,143.21,6.9827]
[1728402374349,6.9813,143.24,143.22,1.39624854]
[1728402374563,6.9811,143.25,143.22,1.39624854]
[1728402374969,34.8936,143.3,143.21,6.9826]
[1728402374970,2.7603328,143.32,143.21,17.4567]
[1728402375155,17.4452,143.31,143.18,34.9191]
[1728402375352,17.4452,143.31,143.23,24.4353]
[1728402375563,6.9799,143.27,143.23,24.4353]
[1728402375779,6.9808,143.25,143.23,21.7659]
[1728402375954,17.4474,143.29,143.23,21.7659]
[1728402376152,20.2048328,143.32,143.24,1.39591895]
[1728402376572,18.2888328,143.32,143.24,1.39591895]
[1728402377152,0.8443328,143.32,143.24,1.39591895]
[1728402377375,6.9779,143.31,143.27,6.9797]
[1728402377672,6.9779,143.31,143.28,1.39559755]
[1728402378548,6.9779,143.31,143.27,1.39559786]
[1728402378959,0.8443328,143.32,143.23,21.7659]
[1728402379154,6.9802,143.27,143.23,21.7659]
[1728402379751,6.9802,143.27,143.23,28.7476]
[1728402379953,6.9794,143.28,143.24,1.39589173]
[1728402380482,6.9794,143.28,143.24,8.37699173]
[1728402380849,6.9794,143.28,143.24,1.39589173]
[1728402381049,0.8443328,143.32,143.23,21.7659]
[1728402381050,17.4476,143.29,143.23,21.7659]
[1728402381257,6.9812,143.24,143.19,39.401]
[1728402381459,6.9822,143.22,143.19,21.9427]
[1728402381675,6.9814,143.24,143.2,1.39627588]
[1728402381876,6.9818,143.23,143.19,21.9427]
[1728402382059,6.9813,143.24,143.2,1.39629392]
[1728402382378,6.9813,143.24,143.2,8.37939392]
[1728402382560,6.9809,143.25,143.2,25.83699392]
[1728402383781,17.4513,143.26,143.19,21.9427]
[1728402384369,6.9819,143.23,143.2,1.39629854]
[1728402384889,6.9811,143.25,143.2,1.39629854]
[1728402385057,6.9811,143.25,143.21,6.9827]
[1728402385257,17.4477,143.29,143.22,1.39614048]
[1728402385468,6.9807,143.26,143.21,6.9824]
[1728402385665,6.9814,143.24,143.2,17.4575]
[1728402385876,1.41449,143.3,143.19,21.9427]
[1728402385877,17.4499,143.27,143.19,21.9427]
[1728402386578,17.4499,143.27,143.19,21.9427]
[1728402386885,17.4499,143.27,143.2,1.39642024]
[1728402387084,6.9822,143.22,143.2,1.39642024]
[1728402387377,6.9819,143.23,143.2,1.39642024]
[1728402387768,17.4523,143.25,143.19,21.9427]
[1728402387966,6.9837,143.19,143.16,15.4964]
[1728402388172,34.8987,143.28,143.16,15.4964]
[1728402388373,6.9847,143.17,143.15,6.1479]
[1728402388582,6.985,143.17,143.15,6.1479]
[1728402388891,6.9851,143.16,143.13,1.39697448]
[1728402389061,6.9862,143.14,143.12,22.3019]
[1728402389478,6.9862,143.14,143.12,15.6559]
[1728402389678,6.9862,143.14,143.09,29.2903]
[1728402389981,6.9862,143.14,143.09,22.3019]
[1728402390172,6.9858,143.15,143.1,8.38519251]
[1728402390481,6.9853,143.16,143.11,6.9875]
[1728402390658,34.9167,143.2,143.11,1.39708271]
[1728402390865,6.9871,143.12,143.07,24.4628]
[1728402391158,17.4626,143.17,143.08,8.38635812]
[1728402391159,6.9867,143.13,143.08,8.38635812]
[1728402391360,17.4626,143.17,143.07,17.4734]
[1728402391572,6.9891,143.08,143.04,40.4553]
[1728402391775,6.9899,143.07,143.04,22.978]
[1728402391980,6.9901,143.06,143.01,24.4726]
[1728402392185,6.991,143.04,143.0,23.2472]
[1728402392480,1.916,143.15,143.0,23.2472]
[1728402392481,17.4723,143.09,143.0,40.7287]
[1728402392679,6.99,143.06,143.01,6.9921]
[1728402392860,6.99,143.06,143.0,40.7287]
[1728402393065,6.99,143.06,143.01,6.9923]
[1728402393466,6.9906,143.05,143.0,47.7216]
[1728402394282,6.9906,143.05,143.01,1.39815193]
[1728402394863,17.4723,143.09,143.01,1.39815193]
[1728402395086,6.9905,143.05,143.01,6.9924]
[1728402395686,6.9901,143.06,143.02,1.39806309]
[1728402395877,6.9901,143.06,143.01,6.9924]
[1728402396071,6.9906,143.05,143.01,6.9924]
[1728402396386,6.9906,143.05,143.0,47.7216]
[1728402396582,6.9911,143.04,143.0,40.7287]
[1728402397077,6.9915,143.03,143.0,23.2472]
[1728402397277,6.9904,143.06,143.01,1.39825405]
[1728402397483,6.9915,143.03,143.0,23.2472]
[1728402397787,6.9911,143.04,143.01,1.39825521]
[1728402397993,6.9911,143.04,143.0,23.2472]
[1728402398192,6.9911,143.04,143.01,1.39822687]
[1728402398372,36.14932841,143.12,143.01,1.39822687]
[1728402398572,6.9893,143.08,143.02,1.39795923]
[1728402398777,6.9896,143.07,143.02,6.9919]
[1728402399380,6.9892,143.08,143.03,8.38919411]
[1728402399691,6.9896,143.07,143.03,8.38919411]
[1728402400198,6.9896,143.07,143.04,1.39785287]
[1728402400596,0.12549,143.11,143.01,17.4806]
[1728402400779,6.9907,143.05,143.01,24.473]
[1728402401798,6.9891,143.08,143.04,6.9909]
[1728402401970,6.9896,143.07,143.03,6.9914]
[1728402402293,6.9892,143.08,143.03,8.38925457]
[1728402402592,0.12549,143.11,143.01,17.4806]
[1728402402772,6.9892,143.08,143.04,6.9909]
[1728402402970,6.9892,143.08,143.05,1.39776972]
[1728402403162,6.9892,143.08,143.03,24.4694]
[1728402403588,17.468,143.12,143.03,24.4694]
[1728402403891,6.9901,143.06,143.01,6.9923]
[1728402404278,6.9901,143.06,143.02,1.39800477]
[1728402404473,17.4706,143.1,143.01,1.3979519]
[1728402404684,6.9897,143.07,143.03,6.9914]
[1728402404875,6.9897,143.07,143.0,40.7289]
[1728402404876,6.9897,143.07,143.02,24.4715]
[1728402405089,6.9902,143.06,143.02,17.4796]
[1728402405287,6.9907,143.05,143.01,6.9921]
[1728402405594,6.9907,143.05,143.0,23.2472]
[1728402405798,6.9907,143.05,142.95,7.26379534]
[1728402405799,5.45493524,143.04,142.95,7.26379534]
[1728402405974,6.9949,142.96,142.84,15.9331]
[1728402406302,17.4838,142.99,142.84,38.51095129]
[1728402406469,0.12549,143.0,142.85,1.39897939]
[1728402406666,17.4802,143.02,142.86,6.1329]
[1728402406869,0.12549,143.01,142.9,6.9974]
[1728402407288,6.9955,142.95,142.89,17.4947]
[1728402407497,0.12549,143.01,142.91,1.39888279]
[1728402407880,0.12549,143.01,142.91,6.9973]
[1728402408083,0.12549,143.01,142.92,1.39888502]
[1728402408278,0.12549,143.01,142.91,6.9973]
[1728402408484,6.995,142.96,142.92,1.39889742]
[1728402409396,6.995,142.96,142.91,6.9973]
[1728402409598,6.9946,142.97,142.92,6.9969]
[1728402409775,6.9946,142.97,142.9,0.12549]
[1728402409776,6.994,142.98,142.93,8.39507613]
[1728402410823,6.9935,142.99,142.94,6.9959]
[1728402411171,17.4802,143.02,142.93,16.6495]
[1728402411473,6.994,142.98,142.93,23.6459]
[1728402412088,6.9946,142.97,142.93,16.6495]
[1728402412726,6.995,142.96,142.93,16.6495]
[1728402412898,6.9954,142.95,142.93,16.6495]
[1728402414282,6.9949,142.96,142.93,16.6495]
[1728402414789,6.9949,142.97,142.94,1.39889094]
[1728402415099,10.93594253,143.03,142.94,1.39889094]
[1728402415100,17.4792,143.03,142.94,1.39889094]
[1728402415276,6.9945,142.97,142.93,41.1359]
[1728402415972,6.9945,142.97,142.93,34.1399]
[1728402416385,6.9955,142.95,142.93,16.6495]
[1728402417203,6.995,142.96,142.93,16.6495]
[1728402417599,6.995,142.96,142.94,1.39891338]
[1728402417787,0.12549,143.03,142.94,8.39470667]
[1728402417977,6.9944,142.97,142.93,23.6457]
[1728402418393,6.9951,142.96,142.93,16.6495]
[1728402418773,17.4834,143.0,142.93,16.6495]
[1728402418774,6.9946,142.97,142.93,16.6495]
[1728402418998,6.9946,142.97,142.94,1.39886108]
[1728402419183,6.9941,142.98,142.93,23.6459]
[1728402419380,6.9944,142.97,142.93,23.6459]
[1728402419586,6.9941,142.98,142.94,8.39449014]
[1728402419988,6.9936,142.99,142.94,8.39449014]
[1728402420497,6.9936,142.99,142.93,34.1401]
[1728402420686,6.9936,142.99,142.95,6.9953]
[1728402421013,6.994,142.98,142.94,13.4863]
[1728402421382,6.9939,142.99,142.94,13.4863]
[1728402421582,17.60459,143.03,142.94,6.4905]
[1728402421885,6.9954,142.95,142.93,16.6495]
[1728402422081,17.4818,143.01,142.94,6.9958]
[1728402422307,6.9941,142.98,142.93,23.6457]
[1728402422602,8.58408545,143.03,142.94,17.4894]
[1728402422784,8.58408545,143.03,142.95,6.995]
[1728402422987,6.993,143.0,142.96,8.39328167]
[1728402423203,6.993,143.0,142.95,6.9953]
[1728402423386,6.993,143.0,142.96,6.9948]
[1728402423801,17.4781,143.04,142.97,6.9943]
[1728402423980,6.9916,143.03,142.98,17.4842]
[1728402424187,8.58408545,143.08,142.99,7.79925517]
[1728402424385,8.58408545,143.08,143.0,17.4822]
[1728402424595,6.9911,143.04,143.0,24.4752]
[1728402425110,6.9907,143.05,143.01,6.9924]
[1728402425482,6.9902,143.06,143.02,6.992]
[1728402425689,10.93594253,143.09,143.01,15.8556]
[1728402425983,21.65110198,143.11,143.03,6.9914]
[1728402425984,6.99,143.07,143.03,6.9914]
[1728402426196,6.9894,143.08,143.04,8.38878699]
[1728402426592,28.40164253,143.14,143.04,17.4771]
[1728402426908,6.9895,143.08,143.04,17.4771]
[1728402427079,6.9895,143.08,143.05,1.39776537]
[1728402427277,6.9895,143.08,143.04,17.4771]
[1728402428224,17.4684,143.12,143.02,6.9919]
[1728402428225,6.9901,143.06,143.02,6.9919]
[1728402428791,6.9896,143.07,143.02,6.9919]
[1728402428992,6.9891,143.08,143.03,8.38917868]
[1728402429192,6.9891,143.08,143.03,6.9913]
[1728402429710,6.991,143.04,143.01,33.3366]
[1728402429915,6.9911,143.04,143.01,15.8556]
[1728402430111,17.4731,143.08,143.01,15.8556]
[1728402430314,6.9917,143.03,143.01,15.8556]
[1728402430688,6.992,143.02,142.99,6.401]
[1728402430891,10.93594253,143.09,142.99,6.401]
[1728402430892,34.9479,143.08,142.99,6.401]
[1728402431108,0.12549,143.07,142.99,6.401]
[1728402431323,6.9919,143.03,142.99,6.401]
[1728402431814,6.9923,143.02,142.99,6.401]
[1728402432190,6.9925,143.01,142.99,6.401]
[1728402432801,0.12549,143.07,142.99,6.401]
[1728402432996,4.18120198,143.09,143.0,1.39811504]
[1728402433306,4.18120198,143.09,142.99,6.401]
[1728402433489,6.9906,143.05,143.0,24.4742]
[1728402433695,10.93594253,143.12,143.03,6.9911]
[1728402433696,6.9892,143.08,143.03,6.9911]
[1728402433903,6.9892,143.08,143.04,6.9909]
[1728402434111,6.9892,143.08,143.03,6.9912]
[1728402434420,6.9886,143.09,143.04,6.9908]
[1728402435291,6.9886,143.09,143.05,1.39773114]
[1728402435592,17.4687,143.12,143.07,6.989]
[1728402435593,6.9872,143.12,143.07,6.989]
[1728402435791,6.9866,143.13,143.08,8.38601579]
[1728402436614,6.9863,143.14,143.08,8.38601579]
[1728402436812,6.9866,143.13,143.08,8.38601579]
[1728402437200,6.9848,143.17,143.11,15.6565]
[1728402437504,10.93594253,143.18,143.11,15.6565]
[1728402437905,6.9859,143.15,143.11,15.6565]
[1728402438221,17.4575,143.21,143.12,1.39705587]
[1728402438413,22.42934642,143.24,143.14,6.986]
[1728402438601,22.42934642,143.24,143.15,1.396682]
[1728402438795,22.42934642,143.24,143.14,6.9861]
[1728402438796,6.9837,143.19,143.14,6.9861]
[1728402439018,17.4579,143.21,143.13,6.4603]
[1728402439321,6.9837,143.19,143.13,13.4466]
[1728402439621,6.9845,143.18,143.13,6.4603]
[1728402439819,6.9853,143.16,143.13,6.4603]
[1728402440023,6.986,143.15,143.13,6.4603]
[1728402440400,6.9827,143.21,143.15,6.9853]
[1728402440615,6.9828,143.21,143.16,1.39682474]
[1728402440812,17.4568,143.22,143.16,1.39668648]
[1728402441018,6.9838,143.19,143.14,6.9861]
[1728402441210,6.9838,143.19,143.13,6.4603]
[1728402441415,6.9838,143.19,143.13,13.4468]
[1728402441616,6.9836,143.2,143.14,7.23698]
[1728402441923,6.9833,143.2,143.15,6.9853]
[1728402442308,6.9835,143.2,143.14,24.4503]
[1728402442694,6.9837,143.19,143.14,24.4503]
[1728402443411,6.9837,143.19,143.15,1.39668419]
[1728402443810,6.9835,143.2,143.14,24.4503]
[1728402444325,6.9819,143.23,143.16,17.4621]
[1728402444627,6.9814,143.24,143.19,13.4511]
[1728402444921,6.9825,143.22,143.19,6.4675]
[1728402445907,17.4536,143.24,143.18,16.4242]
[1728402446118,6.9842,143.18,143.16,6.6168]
[1728402446425,0.12549,143.26,143.16,6.6168]
[1728402446426,17.456,143.22,143.16,6.6168]
[1728402447231,6.9842,143.18,143.16,6.6168]
[1728402447527,6.9842,143.18,143.14,16.2141]
[1728402448228,6.9831,143.21,143.16,6.985]
[1728402448413,0.12549,143.24,143.17,1.39664898]
[1728402448735,6.9837,143.19,143.17,1.39664898]
[1728402448921,6.9837,143.19,143.15,1.39668006]
[1728402449431,6.9835,143.2,143.15,8.38228006]
[1728402449745,6.9838,143.19,143.14,40.6653]
[1728402450299,17.456,143.22,143.14,16.2141]
[1728402450413,6.985,143.17,143.14,16.2141]
[1728402450811,17.456,143.22,143.14,16.2141]
[1728402450812,6.9843,143.18,143.14,16.2141]
[1728402451015,6.9837,143.19,143.15,1.39669982]
[1728402451230,17.456,143.22,143.14,23.2001]
[1728402451231,17.456,143.22,143.14,16.2141]
[1728402451411,6.9833,143.2,143.15,6.9853]
[1728402451619,0.12549,143.24,143.16,8.38148417]
[1728402451932,17.4526,143.25,143.16,0.12549]
[1728402452111,17.4526,143.25,143.15,17.58889]
[1728402452307,6.9838,143.19,143.15,17.4634]
[1728402452821,17.4547,143.23,143.15,17.4634]
[1728402453022,6.9824,143.22,143.17,6.9846]
[1728402453225,17.4517,143.26,143.18,1.39641142]
[1728402453436,10.93594253,143.28,143.16,0.25098]
[1728402453437,6.9816,143.24,143.19,15.00800187]
[1728402453635,6.9816,143.24,143.19,13.6118]
[1728402454241,22.42324642,143.29,143.21,6.9824]
[1728402454543,22.42324642,143.29,143.21,22.5444]
[1728402454544,6.9803,143.26,143.21,22.5444]
[1728402454736,6.9798,143.27,143.22,8.37826199]
[1728402455117,6.9803,143.26,143.21,22.5446]
[1728402455321,6.9803,143.26,143.22,1.39599666]
[1728402455527,17.4476,143.29,143.22,1.39599666]
[1728402455735,6.9808,143.25,143.21,15.562]
[1728402455940,6.9815,143.24,143.21,15.562]
[1728402456237,17.4501,143.27,143.21,15.562]
[1728402456445,35.7335328,143.32,143.21,15.562]